fUST/lending_fUST_20251217
["ID","MTS","AMOUNT","RATE_DAILY","PERIOD"]
[398892530,1765963852670,-162.0,0.000566,120]
[398892531,1765963852679,-11074.86,0.00056712,3]
[398892532,1765963852689,-152.0,0.0005688,120]
[398892533,1765963852698,-11074.86,0.00056986,3]
[398892534,1765963852707,-18825.24,0.00057,2]
[398892535,1765963852717,-162.0,0.000572,120]
[398892536,1765963852726,-11074.86,0.0005726,3]
[398892537,1765963852735,-893.48561145,0.000575,2]
[398892538,1765963852745,-11074.86,0.00057534,3]
[398892539,1765963852755,-210.0,0.000577,120]
[398892540,1765963852764,-211.0,0.000577,120]
[398892541,1765963852773,-11074.86,0.00057808,3]
[398892542,1765963852783,-162.0,0.000579,120]
[398892543,1765963852793,-167.68621,0.00058,60]
[398892544,1765963852802,-152.0,0.00058071,120]
[398892545,1765963852812,-11074.86,0.00058082,3]
[398892546,1765963852822,-11074.86,0.00058356,3]
[398892547,1765963852831,-162.0,0.000585,120]
[398892548,1765963852841,-11074.86,0.0005863,3]
[398892549,1765963852850,-11074.86,0.00058904,3]
[398892550,1765963852859,-210.0,0.00059,120]
[398892551,1765963852868,-211.0,0.00059,120]
[398892552,1765963852878,-210.0,0.00059,120]
[398892553,1765963852887,-162.0,0.000591,120]
[398892554,1765963852897,-935.475627,0.0005912,2]
[398892555,1765963852906,-11074.86,0.00059178,3]
[398892556,1765963852916,-152.0,0.00059262,120]
[398892557,1765963852925,-11074.86,0.00059452,3]
[398892558,1765963852934,-421.7,0.00059557,30]
[398892559,1765963852943,-162.0,0.000597,120]
[398892560,1765963852953,-11074.86,0.00059726,3]
[398892561,1765963852962,-11074.86,0.00059999,3]
[398892562,1765963852972,-395.98782006,0.0006,120]
[398892563,1765963852981,-11074.86,0.00060273,3]
[398892564,1765963852990,-162.0,0.000603,120]
[398892565,1765963853000,-152.0,0.00060453,120]
[398892566,1765963853010,-11074.86,0.00060547,3]
[398892567,1765963853019,-11074.86,0.00060821,3]
[398892568,1765963853029,-162.0,0.000609,120]
[398892569,1765963853038,-150.0,0.00061,120]
[398892570,1765963853049,-11075.04098391,0.00061095,3]
[398892571,1765963853058,-162.0,0.000616,120]
[398892572,1765963853067,-152.0,0.00061644,120]
[398892573,1765963853076,-162.0,0.000622,120]
[398892574,1765963853087,-200.0,0.00062706,120]
[398892575,1765963853096,-162.0,0.000628,120]
[398892576,1765963853106,-152.0,0.00062835,120]
[398892577,1765963853116,-162.0,0.000634,120]
[398892578,1765963853126,-162.0,0.00064,120]
[398892579,1765963853135,-152.0,0.00064026,120]
[398892580,1765963853145,-162.0,0.000646,120]
[398892581,1765963853155,-200.0,0.00064807,120]
[398892582,1765963853165,-10000.0,0.00064999,15]
[398892583,1765963853175,-5000.0,0.00065,120]
[398892584,1765963853185,-162.0,0.000653,120]
[398892585,1765963853195,-200.0,0.00065537,120]
[398892586,1765963853204,-935.475627,0.00065609,2]
[398892587,1765963853216,-10000.0,0.00065752,15]
[398892588,1765963853226,-162.0,0.000659,120]
[398892589,1765963853236,-162.0,0.000665,120]
[398892590,1765963853246,-162.0,0.000671,120]
[398892591,1765963853256,-172.29,0.00067493,120]
[398892592,1765963853266,-150.00000002,0.00067495,120]
[398892593,1765963853277,-162.0,0.000677,120]
[398892594,1765963853287,-150.0,0.000684,120]
[398892595,1765963853297,-162.0,0.000684,120]
[398892596,1765963853308,-10000.0,0.00068492,15]
[398892597,1765963853318,-152.0,0.00068493,120]
[398892598,1765963853328,-152.0,0.00068493,120]
[398892599,1765963853338,-152.0,0.00068493,120]
[398892600,1765963853347,-152.0,0.00068493,120]
[398892601,1765963853357,-153.1296881,0.00068493,120]
[398892602,1765963853366,-150.0,0.00068493,120]
[398892603,1765963853375,-151.0,0.00068493,120]
[398892604,1765963853385,-151.0,0.00068493,120]
[398892605,1765963853394,-151.0,0.00068493,120]
[398892606,1765963853404,-151.0,0.00068493,120]
[398892607,1765963853414,-151.0,0.00068493,120]
[398892608,1765963853423,-151.0,0.00068493,120]
[398892609,1765963853433,-151.0,0.00068493,120]
[398892610,1765963853651,-151.0,0.00068493,120]
[398892611,1765963853662,-151.0,0.00068493,120]
[398892612,1765963853673,-151.0,0.00068493,120]
[398892613,1765963853683,-151.0,0.00068493,120]
[398892614,1765963853692,-151.0,0.00068493,120]
[398892615,1765963853702,-151.0,0.00068493,120]
[398892616,1765963853711,-151.0,0.00068493,120]
[398892617,1765963853721,-151.0,0.00068493,120]
[398892618,1765963853731,-151.0,0.00068493,120]
[398892619,1765963853742,-151.0,0.00068493,120]
[398892620,1765963853751,-151.0,0.00068493,120]
[398892621,1765963853761,-282.0,0.00068493,120]
[398892622,1765963853771,-162.0,0.00069,120]
[398892623,1765963853780,-162.0,0.000696,120]
[398892624,1765963853790,-5000.0,0.0007,120]
[398892625,1765963853801,-200.0,0.00070178,120]
[398892626,1765963853810,-162.0,0.000702,120]
[398892627,1765963853822,-177.0,0.00070493,120]
[398892628,1765963853832,-162.0,0.000708,120]
[398892629,1765963853842,-10000.0,0.00070999,15]
[398892630,1765963853853,-150.0,0.00070999,120]
[398892631,1765963853863,-150.0,0.00070999,120]
[398892632,1765963853873,-500.0,0.00070999,120]
[398892633,1765963853883,-221.32799909,0.00070999,120]
[398892634,1765963853894,-500.0,0.00070999,120]
[398892635,1765963853904,-150.0,0.00070999,120]
[398892636,1765963853913,-156.7113114,0.00070999,120]
[398892637,1765963853923,-201.70744982,0.00070999,120]
[398892638,1765963853933,-150.0,0.00070999,120]
[398892639,1765963853942,-150.0,0.00070999,120]
[398892640,1765963853954,-150.0,0.00070999,120]
[398892641,1765963853965,-150.0,0.00070999,120]
[398892642,1765963853975,-150.0,0.00070999,120]
[398892643,1765963853985,-150.0,0.00070999,120]
[398892644,1765963853996,-203.84055143,0.00070999,120]
[398892645,1765963854006,-431.0,0.00070999,120]
[398892646,1765963854015,-150.0,0.00070999,120]
[398892647,1765963854024,-250.0,0.00070999,120]
[398892648,1765963854034,-431.0,0.00070999,120]
[398892649,1765963854044,-431.0,0.00070999,120]
[398892650,1765963854053,-431.0,0.00070999,120]
[398892651,1765963854062,-431.0,0.00070999,120]
[398892652,1765963854072,-431.0,0.00070999,120]
[398892653,1765963854081,-150.0,0.00070999,120]
[398892654,1765963854090,-431.0,0.00070999,120]
[398892655,1765963854099,-150.0,0.00070999,120]
[398892656,1765963854109,-431.0,0.00070999,120]
[398892657,1765963854118,-150.5031341,0.00070999,120]
[398892658,1765963854127,-150.0,0.00070999,120]
[398892659,1765963854137,-431.0,0.00070999,120]
[398892660,1765963854146,-243.97256902,0.00070999,120]
[398892661,1765963854156,-431.0,0.00070999,120]
[398892662,1765963854165,-431.0,0.00070999,120]
[398892663,1765963854175,-431.0,0.00070999,120]
[398892664,1765963854184,-150.0,0.00070999,120]
[398892665,1765963854194,-431.0,0.00070999,120]
[398892666,1765963854203,-150.0,0.00070999,120]
[398892667,1765963854211,-431.0,0.00070999,120]
[398892668,1765963854221,-150.0,0.00070999,120]
[398892669,1765963854230,-150.0,0.00070999,120]
[398892670,1765963854240,-431.0,0.00070999,120]
[398892671,1765963854249,-197.98932537,0.00070999,120]
[398892672,1765963854259,-431.0,0.00070999,120]
[398892673,1765963854268,-152.30279601,0.00070999,120]
[398892674,1765963854278,-431.0,0.00070999,120]
[398892675,1765963854287,-500.0,0.00070999,120]
[398892676,1765963854296,-500.0,0.00070999,120]
[398892677,1765963854305,-551.09076016,0.00070999,120]
[398892678,1765963854314,-500.0,0.00070999,120]
[398892679,1765963854323,-431.0,0.00070999,120]
[398892680,1765963854333,-500.0,0.00070999,120]
[398892681,1765963854343,-500.0,0.00070999,120]
[398892682,1765963854352,-500.0,0.00070999,120]
[398892683,1765963854362,-350.0,0.00070999,120]
[398892684,1765963854371,-150.0,0.00070999,120]
[398892685,1765963854381,-201.70719187,0.00070999,120]
[398892686,1765963854391,-431.0,0.00070999,120]
[398892687,1765963854401,-202.09142869,0.00070999,120]
[398892688,1765963854410,-431.0,0.00070999,120]
[398892689,1765963854419,-150.0,0.00070999,120]
[398892690,1765963854429,-150.0,0.00070999,120]
[398892691,1765963854437,-150.0,0.00070999,120]
[398892692,1765963854447,-206.47085118,0.00070999,120]
[398892693,1765963854456,-150.0,0.00070999,120]
[398892694,1765963854465,-201.81191594,0.00070999,120]
[398892695,1765963854474,-500.0,0.00070999,120]
[398892696,1765963854483,-431.0,0.00070999,120]
[398892697,1765963854492,-500.0,0.00070999,120]
[398892698,1765963854501,-500.0,0.00070999,120]
[398892699,1765963854511,-160.62231059,0.00070999,120]
[398892700,1765963854521,-150.0,0.00070999,120]
[398892701,1765963854530,-150.0,0.00070999,120]
[398892702,1765963854539,-200.68134583,0.00070999,120]
[398892703,1765963854548,-150.0,0.00070999,120]
[398892704,1765963854557,-152.21406531,0.00070999,120]
[398892705,1765963854566,-431.0,0.00070999,120]
[398892706,1765963854575,-150.0,0.00070999,120]
[398892707,1765963854585,-150.0,0.00070999,120]
[398892708,1765963854597,-150.0,0.00070999,120]
[398892709,1765963854606,-150.0,0.00070999,120]
[398892710,1765963854616,-150.0,0.00070999,120]
[398892711,1765963854625,-225.70635499,0.00070999,120]
[398892712,1765963854634,-431.0,0.00070999,120]
[398892713,1765963854643,-436.57010379,0.00070999,120]
[398892714,1765963854652,-500.0,0.00070999,120]
[398892715,1765963854661,-500.0,0.00070999,120]
[398892716,1765963854671,-500.0,0.00070999,120]
[398892717,1765963854679,-200.0,0.00070999,120]
[398892718,1765963854688,-251.0,0.00071,120]
[398892719,1765963854697,-431.0,0.00071,120]
[398892720,1765963854706,-162.0,0.000714,120]
[398892721,1765963854715,-300.0,0.00072,120]
[398892722,1765963854724,-200.0,0.00072,120]
[398892723,1765963854733,-935.475627,0.00072098,120]
[398892724,1765963854742,-162.0,0.000721,120]
[398892725,1765963854750,-204.0,0.00072493,120]
[398892726,1765963854759,-162.0,0.000727,120]
[398892727,1765963854768,-300.0,0.00073,120]
[398892728,1765963854777,-162.0,0.000733,120]
[398892729,1765963854786,-1500.0,0.000739,120]
[398892730,1765963854795,-162.0,0.000739,120]
[398892731,1765963854804,-300.0,0.00074,120]
[398892732,1765963854814,-280.0,0.00074,120]
[398892733,1765963854823,-1000.0,0.00074443,120]
[398892734,1765963854833,-231.0,0.00074493,120]
[398892735,1765963854843,-162.0,0.000745,120]
[398892736,1765963854852,-2000.0,0.00075,120]
[398892737,1765963854861,-4498.82780657,0.00075,120]
[398892738,1765963854872,-162.0,0.000751,120]
[398892739,1765963854881,-11874.55355222,0.00075444,120]
[398892740,1765963854890,-162.0,0.000758,120]
[398892741,1765963854900,-200.0,0.00076,120]
[398892742,1765963854909,-162.0,0.000764,120]
[398892743,1765963854919,-258.0,0.00076493,120]
[398892744,1765963854928,-2000.0,0.00077,120]
[398892745,1765963854938,-189.0,0.00077,120]
[398892746,1765963854947,-3430.70652508,0.000777,120]
[398892747,1765963854957,-200.0,0.00078,120]
[398892748,1765963854965,-285.0,0.00078493,120]
[398892749,1765963854975,-179.71246006,0.0007854,60]
[398892750,1765963854992,-935.475627,0.00078587,120]
[398892751,1765963855002,-2000.0,0.00079,120]
[398892752,1765963855011,-5000.0,0.0008,120]
[398892753,1765963855020,-200.0,0.0008,120]
[398892754,1765963855029,-680.69949433,0.0008,50]
[398892755,1765963855038,-4040.0,0.0008,120]
[398892756,1765963855047,-4498.82780657,0.0008,120]
[398892757,1765963855056,-150.0,0.0008,5]
[398892758,1765963855068,-165.0,0.0008,120]
[398892759,1765963855077,-312.0,0.00080493,120]
[398892760,1765963855086,-300.0,0.00081,120]
[398892761,1765963855095,-200.0,0.00082,120]
[398892762,1765963855104,-339.0,0.00082493,120]
[398892763,1765963855113,-36200.40047276,0.000835,120]
[398892764,1765963855122,-311.24247023,0.00083819,120]
[398892765,1765963855131,-200.0,0.00084,120]
[398892766,1765963855141,-1053.10406515,0.00084,120]
[398892767,1765963855150,-10000.0,0.0008439,120]
[398892768,1765963855159,-1000.0,0.00084443,120]
[398892769,1765963855167,-366.0,0.00084493,120]
[398892770,1765963855176,-1500.0,0.000849,120]
[398892771,1765963855185,-4498.82780657,0.00085,120]
[398892772,1765963855194,-935.475627,0.00085076,120]
[398892773,1765963855203,-152.81662006,0.00086181,120]
[398892774,1765963855211,-152.81662006,0.00086181,120]
[398892775,1765963855221,-152.81662006,0.00086181,120]
[398892776,1765963855230,-152.81662006,0.00086181,120]
[398892777,1765963855240,-152.81662006,0.00086181,120]
[398892778,1765963855250,-152.81662006,0.00086181,120]
[398892779,1765963855259,-152.81662006,0.00086181,120]
[398892780,1765963855272,-152.81662006,0.00086181,120]
[398892781,1765963855281,-152.81662006,0.00086181,120]
[398892782,1765963855289,-152.81662006,0.00086181,120]
[398892783,1765963855299,-152.81662006,0.00086181,120]
[398892784,1765963855308,-152.81662006,0.00086181,120]
[398892785,1765963855317,-152.81662006,0.00086181,120]
[398892786,1765963855326,-152.81662006,0.00086181,120]
[398892787,1765963855335,-152.81662006,0.00086181,120]
[398892788,1765963855344,-152.81662006,0.00086224,120]
[398892789,1765963855353,-152.81662006,0.00086224,120]
[398892790,1765963855362,-152.81662006,0.00086224,120]
[398892791,1765963855370,-152.81662006,0.00086224,120]
[398892792,1765963855379,-152.81662006,0.00086224,120]
[398892793,1765963855387,-152.81662006,0.00086224,120]
[398892794,1765963855396,-152.81662006,0.00086224,120]
[398892795,1765963855405,-152.81662006,0.00086224,120]
[398892796,1765963855413,-152.81662006,0.00086224,120]
[398892797,1765963855422,-152.81662006,0.00086224,120]
[398892798,1765963855430,-152.81662006,0.00086224,120]
[398892799,1765963855439,-152.81662006,0.00086224,120]
[398892800,1765963855448,-152.81662006,0.00086224,120]
[398892801,1765963855456,-152.81662006,0.00086224,120]
[398892802,1765963855465,-152.81662006,0.00086224,120]
[398892803,1765963855473,-393.0,0.00086493,120]
[398892804,1765963855482,-490.57083677,0.00086498,103]
[398892805,1765963855492,-1000.0,0.00086999,120]
[398892806,1765963855500,-300.0,0.00088,120]
[398892807,1765963855509,-420.0,0.00088493,120]
[398892808,1765963855518,-5000.0,0.0009,120]
[398892809,1765963855528,-5000.0,0.0009,120]
[398892810,1765963855536,-600.0,0.0009,120]
[398892811,1765963855546,-4498.82780657,0.0009,120]
[398892812,1765963855555,-5213.60815634,0.0009,120]
[398892813,1765963855564,-447.0,0.00090493,120]
[398892814,1765963855573,-935.475627,0.00091564,120]
[398892815,1765963855582,-1000.0,0.00094443,120]
[398892816,1765963855592,-240037.8747,0.00094444,120]
[398892817,1765963855604,-251.31239,0.00094444,120]
[398892818,1765963855614,-251.31239,0.00094444,120]
[398892819,1765963855623,-251.31239,0.00094444,120]
[398892820,1765963855632,-251.31239,0.00094444,120]
[398892821,1765963855642,-151.0,0.00094444,120]
[398892822,1765963855652,-151.0,0.00094444,120]
[398892823,1765963855661,-151.0,0.00094444,120]
[398892824,1765963855673,-151.0,0.00094444,120]
[398892825,1765963855682,-151.0,0.00094444,120]
[398892826,1765963855691,-151.0,0.00094444,120]
[398892827,1765963855700,-151.0,0.00094444,120]
[398892828,1765963855709,-1162.863707,0.00094444,28]
[398892829,1765963855718,-1162.863707,0.00094444,28]
[398892830,1765963855728,-1162.863707,0.00094444,28]
[398892831,1765963855736,-1162.863707,0.00094444,28]
[398892832,1765963855746,-424.8462,0.00094444,120]
[398892833,1765963855755,-424.8462,0.00094444,120]
[398892834,1765963855764,-424.8462,0.00094444,120]
[398892835,1765963855773,-424.8462,0.00094444,120]
[398892836,1765963855782,-151.0,0.00094444,120]
[398892837,1765963855791,-151.0,0.00094444,120]
[398892838,1765963855800,-243.266899,0.00094444,120]
[398892839,1765963855810,-6148.57071299,0.0009488,60]
[398892840,1765963855820,-4498.82780657,0.00095,120]
[398892841,1765963855829,-1500.0,0.000954,120]
[398892842,1765963855838,-1000.0,0.00097499,120]
[398892843,1765963855847,-6065.41914502,0.000975,30]
[398892844,1765963855857,-935.475627,0.00098053,120]
[398892845,1765963855866,-421.68,0.0009925,120]
[398892846,1765963855875,-160.08,0.000993,30]
[398892847,1765963855884,-1000.0,0.00099999,120]
[398892848,1765963855893,-542.98668673,0.001,120]
[398892849,1765963855902,-1000.0,0.001,120]
[398892850,1765963855911,-998.23972058,0.001,120]
[398892851,1765963855990,-200.0,0.001,120]
[398892852,1765963856001,-221.01913167,0.001,30]
[398892853,1765963856010,-1000.0,0.001,120]
[398892854,1765963856020,-1500.0,0.001,2]
[398892855,1765963856029,-246.78408493,0.001,120]
[398892856,1765963856039,-327.61,0.001011,60]
[398892857,1765963856048,-200.0,0.00102739,120]
[398892858,1765963856057,-200.0,0.00102739,120]
[398892859,1765963856066,-206.28012924,0.00102739,120]
[398892860,1765963856076,-935.475627,0.00104542,120]
[398892861,1765963856085,-5000.0,0.00105,120]
[398892862,1765963856095,-200.0,0.001065,120]
[398892863,1765963856104,-200.0,0.001065,120]
[398892864,1765963856114,-200.0,0.001065,120]
[398892865,1765963856124,-150.06,0.001075,30]
[398892866,1765963856133,-399.48,0.001075,120]
[398892867,1765963856142,-182.38,0.0011,120]
[398892868,1765963856151,-935.475627,0.00111031,120]
[398892869,1765963856161,-1500.0,0.00114,120]
[398892870,1765963856170,-5000.0,0.00115,120]
[398892871,1765963856179,-935.475627,0.0011752,120]
[398892872,1765963856189,-179.71246006,0.00117811,60]
[398892873,1765963856197,-150.0,0.0012,60]
[398892874,1765963856207,-1431.0,0.0012,30]
[398892875,1765963856215,-400.55893445,0.0012124,120]
[398892876,1765963856224,-935.475627,0.00124009,120]
[398892877,1765963856233,-1666.0,0.00124052,120]
[398892878,1765963856244,-1074.5725985,0.00125,120]
[398892879,1765963856253,-1915.0257954,0.0013,35]
[398892880,1765963856262,-600.0,0.0013,120]
[398892881,1765963856271,-935.475627,0.00130497,120]
[398892882,1765963856280,-5000.0,0.00135,120]
[398892883,1765963856290,-935.475627,0.00136986,120]
[398892884,1765963856300,-398.894944,0.00136986,120]
[398892885,1765963856310,-15000.0,0.001388,120]
[398892886,1765963856319,-200.0,0.00139,120]
[398892887,1765963856328,-1000.0,0.00143999,120]
[398892888,1765963856337,-1500.0,0.00144,120]
[398892889,1765963856346,-398.894944,0.00144196,120]
[398892890,1765963856355,-1684175.18657701,0.00144444,120]
[398892892,1765964100136,-5000.0,0.00019436,120]
[398892893,1765964100163,-177.07464113,0.00019632,2]
[398892894,1765964100186,-150.0,0.00019766,2]
[398892895,1765964100208,-207.04581584,0.000199,2]
[398892896,1765964103094,-177.0,0.00021766,2]
[398892897,1765964103120,-4305.61861912,0.00021818,2]
[398892898,1765964103144,-198.08824625,0.00021841,2]
[398892899,1765964103169,-776.62,0.0002189,10]
[398892900,1765964103201,-833.75,0.0002189,10]
[398892901,1765964103227,-300.0,0.00021898,2]
[398892902,1765964103253,-300.0,0.00021898,2]
[398892903,1765964103279,-1200.0,0.00021899,2]
[398892904,1765964103310,-16908.92313463,0.000219,2]
[398892905,1765964106655,-300.0,0.00021898,2]
[398892906,1765964106679,-871.0,0.00021899,2]
[398892907,1765964106706,-23829.0,0.000219,2]
[398892908,1765964109065,-25000.0,0.000219,2]
[398892909,1765964110447,-5000.0,0.00021681,2]
[398892910,1765964110475,-20000.0,0.000219,2]
[398892911,1765964112340,-25000.0,0.000219,2]
[398892912,1765964114619,-21467.00863085,0.000219,2]
[398892913,1765964114642,-500.0,0.00021918,2]
[398892914,1765964114665,-708.29856453,0.00021984,2]
[398892915,1765964114687,-160.08,0.00022,7]
[398892916,1765964114711,-1000.0,0.00022055,30]
[398892917,1765964114734,-204.0,0.00023766,2]
[398892918,1765964114757,-960.61280462,0.00024336,2]
[398892919,1765964117242,-633.05896558,0.00024336,2]
[398892920,1765964117266,-286.14987422,0.00024354,2]
[398892921,1765964117290,-500.0,0.00024799,2]
[398892922,1765964117314,-254.21571236,0.00024799,2]
[398892923,1765964117339,-500.0,0.00024799,2]
[398892924,1765964117362,-500.0,0.00024799,2]
[398892925,1765964117385,-500.0,0.00024799,2]
[398892926,1765964117409,-500.0,0.00024799,2]
[398892927,1765964117432,-500.0,0.00024799,2]
[398892928,1765964117455,-500.0,0.00024799,2]
[398892929,1765964117488,-500.0,0.00024799,2]
[398892930,1765964117516,-500.0,0.00024799,2]
[398892931,1765964117539,-500.0,0.00024799,2]
[398892932,1765964117563,-500.0,0.00024799,2]
[398892933,1765964117586,-500.0,0.00024799,2]
[398892934,1765964117610,-500.0,0.00024799,2]
[398892935,1765964117632,-354.21571235,0.00024799,2]
[398892936,1765964117656,-231.0,0.00025766,2]
[398892937,1765964117678,-150.0,0.00027397,5]
[398892938,1765964117701,-258.0,0.00027766,2]
[398892939,1765964117723,-250.0,0.00027945,5]
[398892940,1765964117747,-515.06977359,0.00028328,2]
[398892941,1765964117774,-350.0,0.00028493,5]
[398892942,1765964117798,-415.0,0.00028683,2]
[398892943,1765964117821,-635.077,0.00028683,2]
[398892944,1765964117846,-2167.208,0.00028683,2]
[398892945,1765964117869,-1366.697,0.00028683,2]
[398892946,1765964117892,-450.0,0.00029041,5]
[398892947,1765964117915,-550.0,0.00029589,5]
[398892948,1765964117945,-169.20750035,0.00029766,2]
[398892949,1765964133733,1922.08599154,0.0003,2]
[398892950,1765964154895,415.0,0.00028683,2]
[398892951,1765964233270,150.0,0.00027397,5]
[398892952,1765964233306,359.15349209,0.00027945,5]
[398892953,1765964403776,706.03,0.0002999,2]
[398892954,1765964706263,150.0,0.0003,2]
[398892955,1765964743621,150.0,8.718e-05,2]
[398892956,1765964744044,150.0,9.511e-05,2]
[398892957,1765964744437,150.0,0.00010304,2]
[398892958,1765964744950,150.0,0.00011096,2]
[398892959,1765964745340,150.0,0.00011889,2]
[398892960,1765964745737,150.0,0.00012681,2]
[398892961,1765964748565,2000.0,0.0003,2]
[398892962,1765964776638,501.98,0.0003,2]
[398892963,1765964786273,233.32188008,0.00029574,7]
[398892964,1765964789107,2127.52909784,0.00028683,2]
[398892965,1765964833099,-30.47090216,0.00028683,2]
[398892966,1765964833120,-291.12632047,0.00028683,2]
[398892967,1765964833151,-340.87367953,0.00028683,2]
[398892968,1765964833172,-198.08824625,0.00031354,2]
[398892969,1765964833193,-1200.0,0.00031682,3]
[398892970,1765964833215,-393.49114736,0.000332,117]
[398892971,1765964833234,-212.0,0.000338,63]
[398892972,1765964833257,-200.0,0.000354,120]
[398892973,1765964833279,-200.0,0.000374,120]
[398892974,1765964833300,-442.73648502,0.00037499,15]
[398892975,1765964852127,-64.62732622,0.00037499,15]
[398892976,1765964852152,-300.0,0.00037499,2]
[398892977,1765964852172,-97.47801992,0.000375,120]
[398892978,1765964877751,150.0,8.695e-05,2]
[398892979,1765964878162,150.0,9.486e-05,2]
[398892980,1765964878566,150.0,0.00010276,2]
[398892981,1765964927493,176.67,0.00025,2]
[398893009,1765965031844,-187.44910102,0.000314,30]
[398893011,1765965031854,-520.58013479,0.000354,120]
[398893013,1765965031865,-16786.41986521,0.000354,120]
[398893015,1765965031874,-491.01,0.000364,120]
[398893017,1765965031883,-151.57544,0.00038221,120]
[398893019,1765965031892,-151.57544,0.00038221,120]
[398893021,1765965031901,-151.57544,0.00038221,120]
[398893023,1765965031910,-151.57544,0.00038221,120]
[398893025,1765965031919,-151.57544,0.00038221,120]
[398893027,1765965031929,-151.57544,0.00038221,120]
[398893029,1765965031938,-151.57544,0.00038221,120]
[398893031,1765965031947,-151.57544,0.00038221,120]
[398893032,1765965031956,-151.57544,0.00038221,120]
[398893034,1765965031965,-151.57544,0.00038221,120]
[398893036,1765965031974,-151.57544,0.00038221,120]
[398893038,1765965031984,-151.57544,0.00038221,120]
[398893040,1765965031993,-151.57544,0.00038221,120]
[398893042,1765965032003,-151.57544,0.00038221,120]
[398893044,1765965032022,-151.57544,0.00038221,120]
[398893046,1765965032032,-151.57544,0.00038221,120]
[398893048,1765965032041,-151.57544,0.00038221,120]
[398893050,1765965032051,-151.57544,0.00038221,120]
[398893052,1765965032061,-151.57544,0.00038221,120]
[398893054,1765965032070,-151.57544,0.00038221,120]
[398893056,1765965032079,-151.57544,0.00038221,120]
[398893058,1765965032088,-151.57544,0.00038221,120]
[398893060,1765965032097,-151.57544,0.00038221,120]
[398893062,1765965032107,-151.57544,0.00038221,120]
[398893064,1765965032115,-150.0,0.00038221,2]
[398893066,1765965032125,-250.0,0.00038221,10]
[398893068,1765965032134,-400.0,0.00038221,10]
[398893070,1765965032143,-500.0,0.00038221,120]
[398893071,1765965032152,-154.9895,0.00038221,120]
[398893074,1765965032161,-1000.0,0.00038221,120]
[398893075,1765965032171,-1000.0,0.00038221,120]
[398893077,1765965032182,-176.67166171,0.00038221,120]
[398893079,1765965032191,-300.0,0.00038221,117]
[398893081,1765965032200,-211.96806,0.000394,120]
[398893083,1765965032209,-200.30418182,0.0004,2]
[398893085,1765965032220,-182.38023898,0.0004,56]
[398893087,1765965032229,-500.0,0.0004,120]
[398893089,1765965032238,-3767.41629173,0.000409,28]
[398893091,1765965032248,-500.0,0.00041,120]
[398893093,1765965032258,-302.6855,0.000411,120]
[398893095,1765965032267,-503.0,0.00041221,120]
[398893097,1765965032277,-500.0,0.00042,120]
[398893098,1765965032287,-429.29,0.00042121,120]
[398893100,1765965032297,-176.38130533,0.000422,120]
[398893102,1765965032305,-504.0,0.00042221,120]